bitfinex/quotes_ETHUSD_20250525
["timestamp","ask_amount","ask_price","bid_price","bid_amount"]
[1748171346573,0.02,2489.9,2489.8,34.08240347]
[1748171347262,0.02,2489.9,2489.8,34.71357641]
[1748171348465,0.02,2489.9,2489.8,34.08240347]
[1748171352088,0.02,2489.9,2489.8,34.52578854]
[1748171352266,0.02,2489.9,2489.8,35.15696148]
[1748171352852,0.02,2489.9,2489.8,29.02696148]
[1748171353378,0.02,2489.9,2489.8,28.39578854]
[1748171353744,0.02,2489.9,2489.8,20.01078854]
[1748171354065,0.02,2489.9,2489.8,27.50591]
[1748171354579,0.02,2489.9,2489.8,19.12191]
[1748171354758,0.02,2489.9,2489.8,27.50591]
[1748171355381,0.02,2489.9,2489.8,27.70725926]
[1748171355880,0.02,2489.9,2489.8,28.15275273]
[1748171357453,0.02,2489.9,2489.8,28.5961378]
[1748171360389,0.02,2489.9,2489.8,28.15275273]
[1748171361089,0.02,2489.9,2489.8,27.70725926]
[1748171361294,0.02,2489.9,2489.8,14.59515926]
[1748171361623,0.02,2489.9,2489.8,26.39881]
[1748171362123,0.02,2489.9,2489.8,26.94881]
[1748171367137,0.02,2489.9,2489.8,33.07881]
[1748171369713,0.02,2489.9,2489.8,33.52430347]
[1748171371062,0.7763,2490.5,2489.9,0.55]
[1748171371337,0.7763,2490.5,2490.1,0.55]
[1748171372558,0.7763,2490.5,2490.1,8.55]
[1748171372927,0.7946,2490.8,2490.1,8.55]
[1748171373849,0.7946,2490.8,2490.3,0.55]
[1748171374043,0.12,2490.9,2490.3,0.55]
[1748171374250,0.12,2490.9,2490.5,0.55]
[1748171374458,0.12,2490.9,2490.6,12.373]
[1748171374665,0.12,2490.9,2490.7,1.9053]
[1748171375842,0.7946,2490.8,2490.7,1.9053]
[1748171376165,0.7946,2490.8,2490.7,6.2783]
[1748171377949,0.12,2490.9,2490.7,6.2783]
[1748171378255,0.12,2490.9,2490.8,0.55]
[1748171378452,0.12,2490.9,2490.8,1.31831485]
[1748171378753,0.12,2490.9,2490.8,7.44831485]
[1748171380059,0.12,2490.9,2490.8,15.44831485]
[1748171380670,0.12,2490.9,2490.8,9.31831485]
[1748171381497,0.12,2490.9,2490.8,9.87441485]
[1748171384711,0.12,2490.9,2490.8,16.00441485]
[1748171385484,0.12,2490.9,2490.8,16.48239056]
[1748171386008,0.7946,2491.7,2490.8,8.48239056]
[1748171386210,0.7946,2491.7,2491.0,0.55]
[1748171386783,0.02,2491.9,2491.2,0.55]
[1748171386982,0.02,2491.9,2491.4,8.55]
[1748171387182,0.02,2491.9,2491.5,13.023]
[1748171388418,0.02,2491.9,2491.7,0.55]
[1748171388622,0.02,2491.9,2491.8,1.405]
[1748171390684,0.02,2491.9,2491.8,5.409]
[1748171393043,0.02,2491.9,2491.5,13.023]
[1748171393044,0.02,2491.9,2491.5,8.651]
[1748171393335,0.8089,2491.9,2491.6,4.371]
[1748171397618,0.8089,2491.9,2491.6,0.55]
[1748171397817,0.8089,2491.9,2491.7,4.371]
[1748171398836,0.8089,2491.9,2491.5,8.651]
[1748171399138,0.8089,2491.9,2491.8,4.371]
[1748171399740,0.8089,2491.9,2491.5,9.5711]
[1748171400047,0.8089,2491.9,2491.6,4.371]
[1748171400420,0.8089,2491.9,2491.7,4.371]
[1748171400629,0.8089,2491.9,2491.5,8.651]
[1748171400943,0.8089,2491.9,2491.6,4.371]
[1748171401846,0.8089,2491.9,2491.7,4.366]
[1748171402343,0.8089,2491.9,2491.5,8.651]
[1748171402541,0.8089,2491.9,2491.8,4.366]
[1748171403744,0.8089,2491.9,2491.8,4.367]
[1748171404450,0.8089,2491.9,2491.5,8.651]
[1748171404810,0.8089,2491.9,2491.6,4.367]
[1748171405010,0.8089,2491.9,2491.5,8.651]
[1748171405209,0.8089,2491.9,2491.6,4.367]
[1748171405450,0.8089,2491.9,2491.5,8.651]
[1748171405645,0.8089,2491.9,2491.6,4.367]
[1748171406040,0.8089,2491.9,2491.5,8.651]
[1748171406209,0.8089,2491.9,2491.7,4.367]
[1748171406622,0.8089,2491.9,2491.8,4.367]
[1748171407660,0.8089,2491.9,2491.5,8.651]
[1748171407825,0.8089,2491.9,2491.6,4.367]
[1748171408320,0.8089,2491.9,2491.5,8.651]
[1748171408524,0.8089,2491.9,2491.5,9.38857432]
[1748171408859,0.8089,2491.9,2491.6,4.367]
[1748171409429,0.8089,2491.9,2491.7,4.367]
[1748171409764,0.02,2491.9,2491.7,4.367]
[1748171410061,0.02,2491.9,2491.8,0.4367]
[1748171416348,0.02,2491.9,2491.8,4.366]
[1748171416974,0.8335,2491.9,2491.8,4.366]
[1748171417879,0.8335,2491.9,2491.6,6.13]
[1748171418249,0.8335,2491.9,2491.7,4.366]
[1748171418450,0.8335,2491.9,2491.6,6.13]
[1748171418749,0.02,2491.9,2491.7,5.91785743]
[1748171419268,0.02,2491.9,2491.8,4.366]
[1748171419487,0.02,2491.9,2491.7,9.55185743]
[1748171419663,0.02,2491.9,2491.8,4.366]
[1748171420886,0.02,2491.9,2491.7,15.68185743]
[1748171421186,0.02,2491.9,2491.8,5.98979574]
[1748171421888,0.02,2491.9,2491.8,2.17379574]
[1748171422098,0.02,2491.9,2491.8,6.53979574]
[1748171422887,0.02,2491.9,2491.8,2.17379574]
[1748171423091,0.02,2491.9,2491.8,6.53979574]
[1748171426087,0.02,2491.9,2491.8,12.66979574]
[1748171426292,0.02,2491.9,2491.8,20.66979574]
[1748171435776,0.02,2491.9,2491.8,24.66879574]
[1748171436415,0.02,2491.9,2491.8,16.30379574]
[1748171436721,0.02,2491.9,2491.8,24.66879574]
[1748171437429,0.02,2491.9,2491.8,16.30379574]
[1748171437932,0.02,2491.9,2491.8,24.66879574]
[1748171439232,0.02,2491.9,2491.8,25.14677145]
[1748171439440,0.02,2491.9,2491.8,25.70287145]
[1748171440423,0.02,2491.9,2491.8,25.22489574]
[1748171440988,0.12,2492.9,2491.9,9.1061]
[1748171441325,0.8809,2492.9,2492.3,1.02774734]
[1748171442416,0.8809,2492.9,2492.3,0.55]
[1748171443033,0.8809,2492.9,2492.3,0.94931465]
[1748171443725,0.12,2492.9,2492.4,6.6861]
[1748171444020,0.12,2492.9,2492.7,0.55]
[1748171444231,0.12,2492.9,2492.8,4.003]
[1748171444430,0.12,2492.9,2492.8,4.51391]
[1748171444595,0.12,2492.9,2492.8,5.06391]
[1748171445120,0.12,2492.9,2492.8,5.62001]
[1748171445427,0.12,2492.9,2492.8,6.01492118]
[1748171447842,0.12,2492.9,2492.8,14.01492118]
[1748171449541,0.12,2492.9,2492.8,15.58582118]
[1748171449720,0.12,2492.9,2492.8,23.94782118]
[1748171450149,0.12,2492.9,2492.8,15.58582118]
[1748171450311,0.12,2492.9,2492.8,23.94782118]
[1748171451011,0.12,2492.9,2492.8,15.58582118]
[1748171451212,0.12,2492.9,2492.8,15.39782118]
[1748171451412,0.12,2492.9,2492.8,14.492]
[1748171451939,0.12,2492.9,2492.8,10.49]
[1748171455427,0.12,2492.9,2492.8,4.36]
[1748171455849,0.12,2492.9,2492.8,4.91]
[1748171456516,0.12,2492.9,2492.8,12.91]
[1748171456823,0.12,2492.9,2492.8,15.81108929]
[1748171457511,0.12,2492.9,2492.8,10.89498929]
[1748171457714,0.12,2492.9,2492.8,19.25698929]
[1748171459458,0.12,2492.9,2492.8,16.362]
[1748171459657,0.9524,2492.9,2492.8,16.362]
[1748171460538,0.9524,2492.9,2492.8,8.0]
[1748171460727,0.9524,2492.9,2492.8,4.36]
[1748171461318,0.9524,2492.9,2492.2,0.47774734]
[1748171461518,0.9524,2492.9,2492.3,4.36]
[1748171462735,0.9524,2492.9,2491.9,0.40274014]
[1748171462939,0.9524,2492.9,2492.0,12.999]
[1748171463573,0.803,2492.7,2492.0,12.999]
[1748171464133,0.37315907,2492.6,2492.0,12.999]
[1748171464338,0.803,2492.5,2492.0,12.999]
[1748171467368,0.803,2492.5,2492.1,1.2999]
[1748171467569,0.803,2492.5,2492.0,12.999]
[1748171474164,0.803,2492.5,2492.0,8.644]
[1748171474376,0.803,2492.5,2492.1,4.356]
[1748171476817,0.803,2492.5,2492.0,8.644]
[1748171476984,0.803,2492.5,2492.1,4.356]
[1748171479280,0.803,2492.5,2492.0,8.644]
[1748171479585,0.802,2492.3,2492.0,8.644]
[1748171479779,0.802,2492.3,2492.1,4.357]
[1748171480007,0.802,2492.3,2492.0,8.644]
[1748171480212,0.802,2492.3,2492.2,4.357]
[1748171480423,0.802,2492.3,2492.0,8.644]
[1748171480630,0.802,2492.3,2492.1,4.357]
[1748171480821,0.802,2492.3,2492.0,8.644]
[1748171481226,0.802,2492.3,2492.1,4.357]
[1748171481829,0.802,2492.3,2492.2,4.357]
[1748171482605,0.802,2492.3,2492.0,8.644]
[1748171482837,0.802,2492.3,2492.2,4.357]
[1748171485003,0.802,2492.3,2492.0,8.644]
[1748171485204,0.802,2492.3,2492.1,4.357]
[1748171488750,1.18056684,2492.2,2492.1,4.357]
[1748171491451,0.37386684,2492.2,2492.1,5.6571]
[1748171491751,0.8299,2492.4,2492.1,5.6571]
[1748171493754,0.8299,2492.4,2492.1,4.357]
[1748171498657,0.3746426,2492.3,2492.1,4.357]
[1748171499363,0.8279,2492.2,2492.0,8.644]
[1748171499655,0.8279,2492.2,2492.1,4.353]
[1748171499956,1.2025426,2492.2,2492.1,4.353]
[1748171501024,0.3746426,2492.2,2492.1,4.353]
[1748171501355,0.3746426,2492.2,2492.1,5.6527]
[1748171501650,0.7906,2492.6,2492.1,5.6527]
[1748171502660,0.37464905,2492.5,2492.1,5.6527]
[1748171502960,0.37464905,2492.5,2492.2,0.5561]
[1748171503118,0.9106,2492.9,2492.2,0.5561]
[1748171503323,0.9106,2492.9,2492.3,0.62088]
[1748171504424,0.37448725,2492.8,2492.3,0.62088]
[1748171505043,0.9106,2492.9,2492.3,0.62088]
[1748171507156,0.9106,2492.9,2492.4,8.648]
[1748171508527,0.12,2492.9,2492.5,0.5561]
[1748171508762,0.12,2492.9,2492.6,0.92041]
[1748171512244,0.12,2492.9,2492.7,0.5561]
[1748171512428,0.12,2492.9,2492.8,5.91637322]
[1748171513382,0.12,2492.9,2492.8,5.4581]
[1748171513868,0.12,2492.9,2492.8,5.83872953]
[1748171514067,0.12,2492.9,2492.8,6.51464348]
[1748171515435,0.12,2492.9,2492.8,6.53681184]
[1748171518531,0.12,2492.9,2492.8,12.66681184]
[1748171518738,0.12,2492.9,2492.8,13.12508506]
[1748171519136,0.12,2492.9,2492.8,12.66681184]
[1748171519335,0.12,2492.9,2492.8,13.04651519]
[1748171519946,0.12,2492.9,2492.8,21.04651519]
[1748171522773,0.12,2492.9,2492.8,16.69451519]
[1748171522982,0.12,2492.9,2492.8,25.04751519]
[1748171525180,0.12,2492.9,2492.8,16.69451519]
[1748171525484,8.52730679,2494.9,2494.0,39.74595336]
[1748171525672,8.52730679,2494.9,2494.1,12.989]
[1748171525873,18.77730679,2494.9,2494.1,12.989]
[1748171528319,0.8127,2494.8,2494.1,12.989]
[1748171529095,0.55,2494.5,2494.0,39.74595336]
[1748171529425,0.8127,2494.3,2494.1,4.346]
[1748171542327,0.8127,2494.3,2494.0,39.74595336]
[1748171542512,0.7785,2494.5,2494.1,4.345]
[1748171542715,0.7785,2494.3,2494.1,4.345]
[1748171553363,0.7785,2494.3,2494.1,12.987]
[1748171558959,0.7785,2494.3,2494.1,8.642]
[1748171559132,0.7785,2494.3,2494.2,4.342]
[1748171561351,0.7785,2494.3,2494.1,8.642]
[1748171561574,0.7785,2494.3,2494.2,4.342]
[1748171563402,0.7557,2494.7,2494.2,4.342]
[1748171567464,1.44463554,2494.7,2494.2,4.342]
[1748171567653,0.7557,2494.7,2494.2,4.342]
[1748171567981,0.7557,2494.7,2494.1,9.4075]
[1748171568180,0.7557,2494.7,2494.2,4.341]
[1748171568981,7.61978053,2496.1,2496.0,4.45604796]
[1748171569176,0.2,2495.8,2495.3,4.341]
[1748171569383,4.0,2495.7,2495.3,4.341]
[1748171569753,4.19632013,2495.7,2495.3,4.341]
[1748171569945,4.19632013,2495.7,2494.1,8.642]
[1748171570147,0.05011617,2495.6,2494.2,4.341]
[1748171570978,0.55,2495.5,2494.2,4.341]
[1748171572071,0.55,2495.3,2494.2,4.341]
[1748171572300,0.758,2495.2,2494.2,4.341]
[1748171573398,0.758,2495.2,2494.1,8.662]
[1748171573574,0.55,2495.1,2494.2,4.341]
[1748171573900,0.758,2495.0,2494.2,4.341]
[1748171575810,0.7626,2494.8,2494.2,4.341]
[1748171578271,0.7626,2494.8,2494.3,4.341]
[1748171578472,0.7626,2494.8,2494.1,8.662]
[1748171578686,0.7626,2494.8,2494.2,4.341]
[1748171580107,0.7638,2494.6,2494.2,4.341]
[1748171590013,0.81391897,2494.6,2494.2,4.341]
[1748171590215,0.7638,2494.6,2494.2,4.341]
[1748171598429,0.7638,2494.6,2494.1,8.662]
[1748171598624,0.7638,2494.6,2494.2,4.337]
[1748171602229,0.7638,2494.6,2494.3,4.337]
[1748171604231,0.8316,2495.1,2494.3,4.337]
[1748171604427,0.8316,2494.9,2494.3,4.337]
[1748171608406,1.61330401,2494.8,2494.3,5.1658]
[1748171610437,0.8316,2494.9,2494.3,5.1658]
[1748171610937,0.05011381,2494.8,2494.3,5.1658]
[1748171611434,0.05011381,2494.8,2494.4,4.337]
[1748171612537,0.88171378,2494.9,2494.4,4.337]
[1748171612733,0.88171378,2494.9,2494.1,8.662]
[1748171612941,0.88171378,2494.9,2494.5,4.337]
[1748171615759,2.41597804,2494.8,2494.5,4.337]
[1748171616060,0.24660918,2494.7,2494.5,4.337]
[1748171616463,0.8027,2494.6,2494.5,4.337]
[1748171618279,2.41597804,2494.6,2494.5,4.337]
[1748171620045,0.8027,2494.6,2494.5,4.337]
[1748171622270,0.8027,2494.6,2494.1,8.662]
[1748171622472,0.8027,2494.6,2494.5,4.331]
[1748171626864,2.41608714,2494.6,2494.5,4.331]
[1748171627067,2.65769585,2494.6,2494.5,4.331]
[1748171636016,1.61338714,2494.6,2494.5,4.331]
[1748171638899,1.61338714,2494.9,2494.5,4.331]
[1748171641893,1.61338714,2494.8,2494.5,4.331]
[1748171645276,1.61338714,2494.9,2494.5,4.331]
[1748171647284,1.61338714,2494.8,2494.5,4.331]
[1748171647505,1.61338714,2494.8,2494.6,4.325]
[1748171649647,1.61338714,2494.9,2494.6,4.325]
[1748171651960,1.66350027,2494.9,2494.6,4.325]
[1748171652263,1.61338714,2494.8,2494.7,4.325]
[1748171656041,2.43778714,2494.8,2494.7,4.325]
[1748171657500,2.98778714,2494.8,2494.7,4.325]
[1748171659369,10.98778714,2494.8,2494.7,4.325]
[1748171663181,8.0,2494.7,2494.1,8.662]
[1748171663362,0.05012236,2494.6,2494.2,4.325]
[1748171663554,12.001,2494.7,2494.2,4.325]
[1748171663878,0.7661,2494.5,2494.2,4.325]
[1748171664380,0.55,2494.4,2494.2,4.325]
[1748171664586,0.7661,2494.3,2494.2,4.325]
[1748171664892,4.7671,2494.3,2494.2,4.325]
[1748171665056,5.29881,2494.3,2494.2,4.325]
[1748171666041,13.29881,2494.3,2494.2,4.325]
[1748171666374,14.25728684,2494.3,2494.2,4.325]
[1748171668879,15.87067398,2494.3,2494.2,4.325]
[1748171672888,11.86967398,2494.3,2494.2,4.325]
[1748171673096,15.87167398,2494.3,2494.2,4.325]
[1748171673386,2.55357398,2494.3,2494.2,4.325]
[1748171673586,2.02186398,2494.3,2494.2,4.325]
[1748171675368,1.3593,2494.8,2494.2,4.325]
[1748171675886,4.002,2494.8,2494.3,0.7736]
[1748171676053,8.0,2494.7,2494.4,4.326]
[1748171676383,8.0,2494.7,2494.5,4.326]
[1748171676682,8.0,2494.7,2494.6,4.326]
[1748171677049,9.60871984,2494.7,2494.6,4.326]
[1748171677556,1.60871984,2494.7,2494.6,4.326]
[1748171677761,9.60871984,2494.7,2494.6,4.326]
[1748171679048,1.60871984,2494.7,2494.6,4.326]
[1748171679249,8.0,2494.8,2494.6,4.326]
[1748171679983,1.60871984,2494.9,2494.6,4.326]
[1748171682061,12.551,2495.1,2494.6,4.326]
[1748171682259,0.8093,2495.0,2494.6,4.326]
[1748171684794,0.8594135,2495.0,2494.6,4.326]
[1748171686775,0.8093,2495.0,2494.6,4.326]
[1748171687196,1.60882779,2494.9,2494.6,4.326]
[1748171690301,1.65894122,2494.9,2494.6,4.326]
[1748171693003,1.60882779,2494.9,2494.6,4.326]
[1748171693910,1.60882779,2494.8,2494.6,4.326]
[1748171695471,1.60882779,2494.8,2494.7,4.318]
[1748171695666,1.60882779,2494.9,2494.7,4.318]
[1748171698981,1.60882779,2494.9,2494.5,0.7736]
[1748171698982,1.60882779,2494.9,2494.8,4.318]
[1748171703180,1.60882779,2494.9,2494.8,5.1218]
[1748171705420,4.05110553,2495.3,2494.8,5.1218]
[1748171705589,4.001,2495.3,2494.9,4.318]
[1748171705790,0.45020571,2495.2,2494.9,4.318]
[1748171706012,0.4001,2495.2,2494.9,4.318]
[1748171706319,0.4001,2495.2,2495.0,4.318]
[1748171706493,0.4001,2495.2,2495.1,4.318]
[1748171706829,0.55,2494.9,2494.7,4.318]
[1748171707132,0.7994,2494.7,2494.4,4.318]
[1748171707349,0.48505197,2494.6,2494.4,4.318]
[1748171709725,0.48505197,2494.6,2494.4,5.1107]
[1748171709922,8.0,2494.8,2494.4,5.1107]
[1748171713732,8.7994,2495.1,2494.4,5.1107]
[1748171714024,8.0,2494.9,2494.4,5.1107]
[1748171717828,4.001,2494.9,2494.4,5.1107]
[1748171718034,4.05111458,2494.9,2494.4,5.1107]
[1748171718333,0.40511146,2494.8,2494.4,5.1107]
[1748171719243,0.05011455,2494.7,2494.4,5.1107]
[1748171719740,1.3305,2494.7,2494.4,4.318]
[1748171720146,8.0,2494.6,2494.4,4.318]
[1748171721445,8.0,2494.6,2494.0,0.753]
[1748171721640,0.62743606,2494.5,2494.1,4.311]
[1748171721950,4.001,2494.4,2494.1,4.311]
[1748171722147,2.23807786,2494.5,2494.1,4.311]
[1748171722446,2.18795406,2494.5,2494.1,4.311]
[1748171722948,2.23807412,2494.5,2494.1,4.311]
[1748171723246,0.40511146,2494.4,2494.1,4.311]
[1748171724549,2.01575326,2494.4,2494.1,4.311]
[1748171725356,2.01575326,2494.4,2494.2,4.311]
[1748171725357,8.8242212,2494.3,2494.2,4.311]
[1748171725504,8.7741,2494.3,2494.1,4.311]
[1748171726153,8.7741,2494.3,2493.5,0.8116]
[1748171726379,0.57731226,2494.2,2493.6,4.311]
[1748171726669,4.57831226,2494.2,2493.6,4.311]
[1748171728258,8.0,2494.1,2493.6,4.311]
[1748171729872,9.6106418,2494.1,2493.6,4.311]
[1748171730088,0.40511146,2494.0,2493.6,4.311]
[1748171734855,1.16791146,2494.0,2493.7,4.311]
[1748171738984,1.16791146,2494.0,2493.4,8.642]
[1748171739192,1.16791146,2494.0,2493.5,4.304]
[1748171743561,1.16791146,2494.0,2493.4,8.642]
[1748171743761,4.57931226,2493.9,2493.6,4.304]
[1748171748797,4.57931226,2493.9,2493.7,4.305]
[1748171751296,4.57931226,2493.9,2493.4,8.642]
[1748171751463,4.62944557,2493.9,2493.5,4.305]
[1748171751663,4.57931226,2493.9,2493.5,4.305]
[1748171751885,0.40511146,2493.8,2493.5,4.305]
[1748171754065,4.002,2493.7,2493.5,4.305]
[1748171754919,2.01672921,2493.9,2493.5,4.305]
[1748171755220,2.01672921,2493.9,2493.6,0.7624]
[1748171759819,2.41588743,2494.3,2493.6,0.7624]
[1748171759984,2.01672921,2494.3,2493.6,0.7624]
[1748171761637,6.06885338,2494.4,2493.6,0.7624]
[1748171762977,2.01672921,2494.4,2493.7,0.04009936]
[1748171763152,2.01672921,2494.4,2493.7,0.7773]
[1748171764080,3.62721509,2494.3,2493.7,0.7773]
[1748171764292,3.62721509,2494.3,2493.9,0.7773]
[1748171764682,3.62721509,2494.3,2493.9,0.81739196]
[1748171764840,3.62721509,2494.3,2493.9,0.7773]
[1748171766145,3.62721509,2494.8,2493.9,0.7773]
[1748171766371,3.62721509,2494.8,2494.0,0.7744]
[1748171766550,3.62721509,2494.8,2494.2,0.7744]
[1748171766751,3.62721509,2494.8,2494.4,0.7744]
[1748171768884,2.01672921,2495.2,2494.4,0.7744]
[1748171771683,8.0,2495.3,2494.4,0.7744]
[1748171772481,2.83232921,2495.4,2494.4,0.7744]
[1748171772776,0.28323292,2495.3,2494.5,0.7985]
[1748171774355,2.01672921,2495.5,2494.6,0.83488236]
[1748171774559,2.01672921,2495.5,2494.6,0.7948]
[1748171775461,2.01672921,2495.5,2494.7,0.7544]
[1748171777795,8.8392,2495.9,2494.7,0.7544]
[1748171777998,9.24544912,2495.9,2494.7,0.7544]
[1748171778193,9.24544912,2495.9,2494.9,0.7544]
[1748171778505,1.24544912,2495.9,2495.1,0.7544]
[1748171779805,0.05009381,2495.8,2495.1,0.7544]
[1748171780009,1.24544912,2495.9,2495.1,0.7544]
[1748171784217,0.05009301,2495.8,2495.2,4.295]
[1748171784516,0.55,2495.7,2495.3,4.294]
[1748171784660,0.765,2495.6,2495.3,4.294]
[1748171785177,0.81509924,2495.6,2495.3,4.294]
[1748171785497,0.55,2495.5,2495.4,4.294]
[1748171785688,1.3527,2495.5,2495.4,4.294]
[1748171786316,0.8027,2495.5,2495.4,4.294]
[1748171786598,1.28297,2495.5,2494.9,8.641]
[1748171786801,1.83297,2495.5,2495.4,4.294]
[1748171787838,1.83297,2495.5,2495.4,4.295]
[1748171788900,1.83297,2495.5,2494.9,8.641]
[1748171789108,1.83297,2495.5,2495.0,4.295]
[1748171790409,1.83297,2495.5,2495.1,4.295]
[1748171790615,1.83297,2495.5,2494.9,8.641]
[1748171790783,1.83297,2495.5,2495.2,4.295]
[1748171791109,1.28297,2495.5,2495.2,4.295]
[1748171791320,0.8027,2495.5,2495.2,4.295]
[1748171791522,8.8027,2495.5,2495.2,4.295]
[1748171791879,8.8027,2495.5,2494.9,8.641]
[1748171792075,8.8027,2495.5,2495.0,4.295]
[1748171797234,8.8027,2495.5,2494.9,8.641]
[1748171797424,8.8027,2495.5,2495.0,4.295]
[1748171797588,8.8027,2495.5,2494.9,8.641]
[1748171797882,8.8027,2495.5,2495.0,4.295]
[1748171799117,8.8027,2495.5,2494.9,8.641]
[1748171799318,8.8027,2495.5,2495.1,4.295]
[1748171799524,8.8027,2495.5,2495.2,4.288]
[1748171800021,4.0,2495.4,2495.2,4.288]
[1748171800341,8.0,2495.3,2495.2,4.288]
[1748171800713,4.0,2495.4,2495.2,4.288]
[1748171802841,8.0,2495.3,2495.2,4.288]
[1748171803631,12.0,2495.4,2495.2,4.288]
[1748171804326,12.0,2495.4,2495.3,4.288]
[1748171807635,15.62479701,2495.4,2495.3,4.288]
[1748171809557,13.6080678,2495.4,2495.3,4.288]
[1748171810549,1.6080678,2495.4,2495.3,4.288]
[1748171810717,5.6080678,2495.4,2495.3,4.288]
[1748171810914,6.16887458,2495.4,2495.3,4.288]
[1748171811517,6.16887458,2495.4,2494.9,9.419]
[1748171811821,6.16887458,2495.4,2495.0,4.288]
[1748171813840,3.62766868,2495.3,2495.0,4.288]
[1748171816574,7.62766868,2495.3,2495.0,4.288]
[1748171817141,7.62766868,2495.3,2494.9,0.778]
[1748171817341,8.81378562,2495.3,2495.0,4.288]
[1748171819384,3.62766868,2495.2,2495.0,4.288]
[1748171821184,4.0,2495.1,2495.0,4.288]
[1748171821385,4.8029,2495.1,2495.0,4.288]
[1748171821566,5.36370678,2495.1,2495.0,4.288]
[1748171821887,7.38330766,2495.1,2495.0,4.288]
[1748171825080,6.97177458,2495.1,2495.0,4.288]
[1748171825265,2.97177458,2495.1,2495.0,4.288]
[1748171825448,6.4109678,2495.1,2495.0,4.288]
[1748171830097,2.4109678,2495.1,2495.0,4.288]
[1748171830270,6.4109678,2495.1,2495.0,4.288]
[1748171830597,6.4109678,2495.1,2495.0,4.281]
[1748171831402,8.0,2495.0,2494.5,0.7714]
[1748171831599,8.0,2495.0,2494.1,8.641]
[1748171831600,0.55,2494.7,2494.4,4.281]
[1748171831770,8.0,2494.5,2494.4,4.281]
[1748171832574,8.39546643,2494.6,2494.5,0.781]
[1748171832775,5.27875197,2494.8,2494.5,0.781]
[1748171833596,4.0,2494.8,2494.5,0.781]
[1748171835081,8.0,2494.6,2494.5,0.781]
[1748171835597,5.6080678,2494.7,2494.5,0.781]
[1748171835804,1.6080678,2494.7,2494.5,0.781]
[1748171837185,2.02071931,2494.7,2494.5,0.781]
[1748171838407,2.02071931,2494.7,2494.6,4.281]
[1748171839718,2.65902777,2494.7,2494.6,4.281]
[1748171839921,0.63830846,2494.7,2494.6,4.281]
[1748171846759,0.63830846,2494.7,2494.6,5.101]
[1748171847447,2.65902777,2494.8,2494.6,5.101]
[1748171849046,0.63830846,2494.8,2494.6,5.101]
[1748171850026,0.63830846,2494.8,2494.6,4.281]
[1748171851168,0.63830846,2494.7,2494.6,4.281]
[1748171863789,2.02071931,2494.8,2494.6,4.281]
[1748171866244,0.8071,2494.7,2494.1,0.8304]
[1748171866592,0.55,2494.6,2494.2,4.275]
[1748171866788,0.8071,2494.5,2494.2,4.275]
[1748171868094,0.85721755,2494.5,2494.2,4.275]
[1748171868416,8.0,2494.4,2494.2,4.275]
[1748171872113,11.63353277,2494.3,2494.2,4.275]
[1748171872690,12.39603277,2494.3,2494.2,4.275]
[1748171872990,12.94603277,2494.3,2494.2,4.275]
[1748171873903,16.94703277,2494.3,2494.2,4.275]
[1748171874084,12.94603277,2494.3,2494.2,4.275]
[1748171874290,16.94703277,2494.3,2494.2,4.275]
[1748171877427,14.92572679,2494.3,2494.2,4.275]
[1748171882741,0.7651,2494.1,2493.9,4.276]
[1748171882919,4.552,2494.0,2493.8,4.276]
[1748171884639,4.002,2493.9,2493.8,4.276]
[1748171885627,12.002,2494.1,2493.8,4.276]
[1748171885827,4.002,2494.1,2493.8,4.276]
[1748171886531,10.88719859,2494.2,2493.8,4.276]
[1748171886532,3.63083496,2493.9,2493.8,4.276]
[1748171886831,3.63083496,2493.9,2493.8,5.1071]
[1748171887042,3.63083496,2493.9,2493.8,5.61781]
[1748171889066,0.63719859,2494.5,2493.8,5.61781]
[1748171889369,7.05130906,2494.6,2493.9,0.8311]
[1748171891574,5.03270089,2494.6,2493.9,0.8311]
[1748171892843,5.80550089,2494.6,2493.9,0.8311]
[1748171893045,8.58055009,2494.5,2493.9,0.8311]
[1748171896650,8.0,2494.5,2493.9,0.8311]
[1748171898188,1.03070089,2494.6,2493.9,0.8311]
[1748171898363,5.03170089,2494.6,2493.9,0.8311]
[1748171898771,1.03070089,2494.6,2493.9,0.8311]
[1748171901801,0.63719859,2494.5,2493.9,0.8311]
[1748171902099,0.63719859,2494.5,2493.9,2.20621]
[1748171902501,0.63719859,2494.5,2494.0,0.7672]
[1748171904516,0.63719859,2494.6,2494.0,0.7672]
[1748171905218,1.03877496,2494.6,2494.0,0.7672]
[1748171911817,1.03877496,2494.6,2494.1,4.269]
[1748171913424,1.03877496,2494.6,2494.2,0.7793]
[1748171915426,0.63719859,2494.5,2494.2,0.7793]
[1748171916432,0.63719859,2494.4,2494.2,0.7793]
[1748171916635,0.63719859,2494.4,2494.3,4.269]
[1748171918827,0.39502636,2494.6,2494.3,4.269]
[1748171919027,14.78540817,2494.7,2494.3,4.269]